Cogmind - Beta 11.1 @@@ ROGUE MODE // 2022.05.02 @ 16:11:41 Player: Decinym Result: Destroyed by DAS Turret with DAS Cannon Performance ------------- Evolutions (0) 0 Regions Visited (3) 600 Robots Destroyed (9) 45 Value Destroyed (231) 231 Prototype IDs (0) 0 Alien Tech Used (0) 0 Bonus (-219) -219 TOTAL SCORE: 657 Bonus ------- Friendly Fire -219 Cogmind --------- Core Integrity 0/250 Matter 126/300 Energy 124/125 System Corruption 2% Temperature Cool (0) Movement Core (100) Ox1 Location -10/Exiles Parts ------- > --- POWER (1) -------- Light Ion Engine > --- PROPULSION (2) --- (None) > --- UTILITY (2) ------ Core Shielding > --- WEAPON (2) ------- Light Assault Rifle > --- INVENTORY (5) ---- Light Armor Plating Light Armor Plating Assault Rifle Assault Rifle Heavy Assault Rifle Peak State ------------ > --- POWER ------------ Light Ion Engine > --- PROPULSION ------- Light Treads Light Treads > --- UTILITY ---------- Large Storage Unit Light Armor Plating > --- WEAPON ----------- Heavy Assault Rifle Heavy Assault Rifle > --- INVENTORY -------- Light Treads Core Shielding Core Shielding Light Armor Plating Light Armor Plating Light Armor Plating Light Armor Plating Assault Rifle Assault Rifle Assault Rifle Light Assault Rifle Grenade Launcher [Rating: 10] Favorites ----------- Power Light Ion Engine Engine Light Ion Engine Propulsion Light Treads Treads Light Treads Leg Aluminum Leg Utility Large Storage Unit Device Terrain Scanner Storage Large Storage Unit Protection Light Armor Plating Weapon Assault Rifle Energy Gun EM Pulse Gun Ballistic Gun Assault Rifle Launcher Grenade Launcher Build | -11 -10 -10 -10 ------- Run | Scr Mat Min Exi Slots Evolved . | . . . . Power . | . . . . Propulsion . | . . . . Utility . | . . . . Weapon . | . . . . Parts Attached 19 | . 10 6 3 Power 1 | . 1 . . Engine 1 | . 1 . . Core . | . . . . Reactor . | . . . . Propulsion 3 | . 2 1 . Treads 3 | . 2 1 . Leg . | . . . . Wheel . | . . . . Hover . | . . . . Flight . | . . . . Utility 8 | . 5 2 1 Device 1 | . 1 . . Storage 2 | . 2 . . Processor . | . . . . Hackware . | . . . . Protection 5 | . 2 2 1 Artifact . | . . . . Weapon 7 | . 2 3 2 Energy Gun . | . . . . Energy Cannon . | . . . . Ballistic Gun 5 | . 1 3 1 Ballistic Cannon . | . . . . Launcher 2 | . 1 . 1 Special Weapon . | . . . . Impact Weapon . | . . . . Slashing Weapon . | . . . . Piercing Weapon . | . . . . Special Melee Weapon . | . . . . Unidentified Prototypes . | . . . . Parts Lost 11 | . 2 6 3 Power 1 | . 1 . . Propulsion 3 | . . 2 1 Utility 3 | . 1 2 . Weapon 4 | . . 2 2 Highest Loss Streak 3 | . 2 3 3 To Critical Strikes 3 | . . 3 . Average Slot Usage (%) 85 | . 98 93 50 Engine 13 | . 13 14 14 Treads 16 | . 18 22 2 Leg 3 | . 9 . . Device 1 | . 2 . . Storage 11 | . 14 14 2 Protection 12 | . 9 14 14 Energy Gun 1 | . 3 . . Ballistic Gun 23 | . 23 28 14 Naked Turns . | . . . . Heaviest Build 31 | 12 29 31 31 Greatest Support 40 | 20 40 40 20 Greatest Overweight (x) 2 | . 1 1 2 Average Overweight (x) . | . . . 1 Largest Inventory Capacity 15 | . 15 15 15 Average Capacity 12 | . 13 15 6 Most Carried 13 | . 13 13 8 Average Carried 8 | . 10 9 5 Final Capacity 15 | 8 15 15 5 Final Carried 11 | 6 11 8 5 Class Distribution -------------------- 100% | Mutant Dominant Class ---------------- Mutant | -10/Materials Mutant | -10/Mines Mutant | -10/Exiles Resources | -11 -10 -10 -10 ----------- Run | Scr Mat Min Exi Matter Collected 688 | 200 119 369 . Remotely . | . . . . Salvage Created 411 | . 207 199 5 Parts 15 | . 12 3 . Haulers Intercepted 1 | . 1 . . Recyclers Shooed . | . . . . Parts Field Recycled . | . . . . Retrieved Matter . | . . . . Parts Self-Destructed . | . . . . Prevented . | . . . . Kills | -11 -10 -10 -10 ------- Run | Scr Mat Min Exi Combat Hostiles Destroyed 13 | . 5 2 6 Guns 4 | . 2 2 . AOE 9 | . 3 . 6 Classes Destroyed 4 | . 2 1 1 Hauler 1 | . 1 . . Grunt 5 | . 5 . . Sentry 1 | . . 1 . Assembled 6 | . . . 6 Thug 1 | . . 1 . Best Kill Streak 6 | . 4 1 6 Combat Bots Only 6 | . 3 1 6 Max Kills in Single Turn 3 | . 3 1 1 Gunslinging . | . . . . Exploded 3 | . 3 . 1 Melee . | . . . . Uniques/NPCs Destroyed 1 | . . 1 . 8R-AWN (-10/Mines) Combat | -11 -10 -10 -10 -------- Run | Scr Mat Min Exi Damage Taken 1595 | . 271 1064 260 Core 277 | . 82 111 84 Absorbed by Shields . | . . . . Redirected to Shielding 20 | . . . 20 Core Remaining (%) 100 | 100 . . . Volleys Fired 91 | . 22 60 9 Largest 2 | . 2 2 1 Hottest 60 | . 60 46 30 Shots Fired 172 | . 43 120 9 Gun 164 | . 42 120 2 Cannon . | . . . . Launcher 8 | . 1 . 7 Special . | . . . . Kinetic 160 | . 38 120 2 Thermal . | . . . . Explosive 8 | . 1 . 7 Electromagnetic 4 | . 4 . . Robot Hit Streak 18 | . 7 18 7 Robot Miss Streak 5 | . 3 5 2 Penetration Max . | . . . . Secondary Targets . | . . . . Shots Hit Robots 129 | . 28 98 3 Core Hits 49 | . 12 19 18 Critical Kills . | . . . . Critical Parts Destroyed . | . . . . Critical Strikes 2 | . 1 1 . Destroy 1 | . . 1 . Corrupt 1 | . 1 . . Melee Attacks . | . . . . Impact . | . . . . Slashing . | . . . . Piercing . | . . . . Sneak Attacks . | . . . . Combat Hostiles . | . . . . Follow-up Attacks . | . . . . Damage Inflicted 2116 | . 420 1351 345 Guns 1656 | . 297 1351 8 Cannons . | . . . . Explosions 454 | . 117 . 337 Melee . | . . . . Ramming 6 | . 6 . . Kinetic 1643 | . 284 1351 8 Thermal . | . . . . Explosive 454 | . 117 . 337 Electromagnetic 13 | . 13 . . Impact . | . . . . Slashing . | . . . . Piercing . | . . . . Highest Corruption 2 | . 2 2 2 Average Corruption 2 | . 2 2 2 Corruption Purged . | . . . . Corruption Blocked . | . . . . Effects 8 | . . 3 5 Message Errors 3 | . . 1 2 Matter Fused 4 | . . 2 2 Heat Flow Errors 1 | . . . 1 Overload Shots . | . . . . Overflow Damage 15 | . . . 15 Projectiles . | . . . . Explosions 15 | . . . 15 Melee . | . . . . Knockbacks . | . . . . Impact . | . . . . Kinetic . | . . . . Secondary . | . . . . Self-Inflicted Damage 15 | . . . 15 Shots 1 | . . . 1 Rammed 1 | . 1 . . Targets Rammed 1 | . 1 . . Kicked . | . . . . Crushed . | . . . . Highest Temperature 233 | . 40 21 233 Average Temperature 31 | . 16 9 79 Received Heat Transfer 305 | . 171 54 80 Siege Activations . | . . . . Robots Corrupted . | . . . . Combat Hostiles . | . . . . Parts Fried . | . . . . Impact Corruptions . | . . . . Robots Melted . | . . . . Combat Hostiles . | . . . . Parts Melted . | . . . . Heat Transferred . | . . . . Parts Sabotaged . | . . . . Parts Stolen . | . . . . Parts Stripped . | . . . . Power Chain Reactions . | . . . . Missiles Intercepted . | . . . . Alert | -11 -10 -10 -10 ------- Run | Scr Mat Min Exi Peak Influence 137 | . 137 88 . Initial 53 | . . 53 . Average 70 | . 84 54 . Maximum Alert Level . | . . . . Low Security (%) 100 | . 100 100 . Level 1 . | . . . . Level 2 . | . . . . Level 3 . | . . . . Level 4 . | . . . . Level 5 . | . . . . High Security . | . . . . Max Security . | . . . . Squads Dispatched 2 | . 2 . . Investigation 1 | . 1 . . Extermination . | . . . . Reinforcement 1 | . 1 . . Assault . | . . . . Garrison . | . . . . Intercept . | . . . . Searches Triggered . | . . . . Construction Impeded . | . . . . Haulers Reinforced . | . . . . Active Scanning Responses . | . . . . Cargo Convoy Interrupts . | . . . . Stealth | -11 -10 -10 -10 --------- Run | Scr Mat Min Exi Distress Signals 1 | . 1 . . Communications Jammed . | . . . . Distress Signals . | . . . . Times Spotted 20 | . 8 5 7 Peak Tracking Total 12 | . 4 12 8 Tactical Retreats 2 | . 1 . 1 Traps | -11 -10 -10 -10 ------- Run | Scr Mat Min Exi Traps Triggered 2 | . 2 . . Indirectly . | . . . . Trap Hack Attempts . | . . . . Triggered . | . . . . Disarmed . | . . . . Reprogrammed . | . . . . Reused . | . . . . Traps Extracted . | . . . . Installed . | . . . . Triggered . | . . . . Machines | -11 -10 -10 -10 ---------- Run | Scr Mat Min Exi Machines Disabled . | . . . . Max in Single Turn . | . . . . Machines Sabotaged . | . . . . Garrisons Compromised . | . . . . Overloaded Fab Kills . | . . . . Hacking | -11 -10 -10 -10 --------- Run | Scr Mat Min Exi Machines Accessed 2 | . 2 . . Terminals 1 | . 1 . . Fabricators . | . . . . Repair Stations . | . . . . Recycling Units 1 | . 1 . . Scanalyzers . | . . . . Garrison Access . | . . . . Total Hacks 3 | . 3 . . Successful 2 | . 2 . . Failed 1 | . 1 . . Catastrophic . | . . . . Database Lockouts . | . . . . Manual 3 | . 2 . 1 Terminals 2 | . 2 . . Fabricators . | . . . . Repair Stations . | . . . . Recycling Units 1 | . 1 . . Scanalyzers . | . . . . Garrison Access . | . . . . Terminal Hacks 1 | . 1 . . Branch Access Points 1 | . 1 . . Fabricator Hacks . | . . . . Repair Station Hacks . | . . . . Recycling Unit Hacks 1 | . 1 . . Report Inventory 1 | . 1 . . Scanalyzer . | . . . . Garrison Access Hacks . | . . . . Unauthorized Hacks . | . . . . Terminals . | . . . . Fabricators . | . . . . Repair Stations . | . . . . Recycling Units . | . . . . Scanalyzers . | . . . . Garrison Access . | . . . . Data Cores Recovered . | . . . . Used . | . . . . Hacking Detections . | . . . . Full Trace Events . | . . . . Feedback Events . | . . . . Feedback Blocked . | . . . . Robot Schematics Acquired . | . . . . Robots Built . | . . . . Authchips . | . . . . Time . | . . . . Total Robot Build Rating . | . . . . Part Schematics Acquired . | . . . . Parts Built . | . . . . Authchips . | . . . . Time . | . . . . Total Part Build Rating . | . . . . Parts Repaired . | . . . . Time . | . . . . Parts Recycled . | . . . . Recycled Matter . | . . . . Retrieved Matter . | . . . . Retrieved Components . | . . . . Parts Scanalyzed . | . . . . Part Schematics Acquired . | . . . . Parts Damaged . | . . . . Bothacking | -11 -10 -10 -10 ------------ Run | Scr Mat Min Exi Used RIF Installer . | . . . . Robots Hacked . | . . . . Non-combat . | . . . . Combat . | . . . . Robot Hacks Applied . | . . . . Relay Couplers Released . | . . . . Fabnet Peak Effective % . | . . . . Robots Rewired . | . . . . Allies Hacked . | . . . . Hacks Repelled . | . . . . Allies | -11 -10 -10 -10 -------- Run | Scr Mat Min Exi Total Allies . | . . . . Largest Group . | . . . . Highest-Rated Group . | . . . . Highest-Rated Ally . | . . . . Total Orders . | . . . . Ally Attacks . | . . . . Total Damage . | . . . . Kills . | . . . . Allies Corrupted . | . . . . Allies Melted . | . . . . Intel | -11 -10 -10 -10 ------- Run | Scr Mat Min Exi Robot Analysis Total . | . . . . Derelict Logs Recovered . | . . . . Drone Launches . | . . . . Drone Recoveries . | . . . . Exploration | -11 -10 -10 -10 ------------- Run | Scr Mat Min Exi Turns Passed 947 | . 384 342 221 Spaces Moved 452 | 1 202 70 179 Core 170 | . . . 170 Treads 204 | . 125 70 9 Legs 78 | 1 77 . . Wheels . | . . . . Hover . | . . . . Flight . | . . . . Fastest Speed 100 | 120 120 160 100 Average Speed 141 | 120 145 210 111 Slowest Speed 240 | 120 190 240 240 Overloaded Moves . | . . . . Propulsion Burnouts . | . . . . Robots Hopped . | . . . . Cave-ins Triggered . | . . . . Exploration Rate (%) 26 | 2 42 13 50 Regions Visited 3 Branch Regions 2 Pre-discovered Areas . | . . . . Known Exits Taken 1 | . 1 . . Unknown Exits Taken 2 | 1 . 1 . Scrap Searched . | . . . . Spaces Dug . | . . . . Terrain Destroyed 26 | . . . 26 Melee . | . . . . Projectile . | . . . . AOE 26 | . . . 26 Terrain Rammed . | . . . . Walls Destroyed . | . . . . Machines Disabled . | . . . . Actions | -11 -10 -10 -10 --------- Run | Scr Mat Min Exi Total 592 | . 251 148 193 Wait 9 | . 1 8 . Move 449 | . 201 69 179 Hop . | . . . . Pick Up 13 | . 10 3 . Fast Attach 3 | . 3 . . Attach 9 | . 2 5 2 Detach . | . . . . Swap 7 | . 5 1 1 Drop 10 | . 6 2 2 Fire 91 | . 22 60 9 Melee . | . . . . Ram . | . . . . Kick . | . . . . Crush 1 | . 1 . . Escape Stasis . | . . . . Rewire . | . . . . Trap . | . . . . Miscellaneous . | . . . . Route ------- -11/Scrapyard -10/Materials (discovered 3 exits: [*Mat] / *Min x2) -10/Mines -10/Exiles History --------- Turn | Location | Event 1 | -11/Scrapyard | Discovered new exit (range 0) 1 | -11/Scrapyard | Entered Materials 125 | -10/Materials | Discovered new exit (range 15) 300 | -10/Materials | Build established: Mutant 353 | -10/Materials | Identified exit to Mines 385 | -10/Materials | Entered Mines 386 | -10/Mines | Assembled infested the area 392 | -10/Mines | Joined a pair of Derelicts in attacking an 0b10 outpost 445 | -10/Mines | Met 8R-AWN 450 | -10/Mines | Attacked by 8R-AWN 482 | -10/Mines | Core integrity fell below 50% 576 | -10/Mines | Lost 3 parts (1n1u1w) 602 | -10/Mines | Destroyed 8R-AWN 717 | -10/Mines | Discovered new exit (range 5) 727 | -10/Mines | Entered Exiles 727 | -10/Exiles | Attacked by the Exiles 820 | -10/Exiles | Lost 3 parts (1n2w) 947 | -10/Exiles | Core integrity fell below 20% 948 | -10/Exiles | Destroyed by DAS Turret with DAS Cannon Last Messages --------------- 00761_ as-97426 destroyed. 00762_ The unstable cave ceiling collapses. 00763_ as-59933 destroyed. 00763_ Lgt. Treads destroyed. 00763_ Destroyed Lgt. Treads. 00765_ Dropped Lgt. Armor Plating. 00767_ Dropped Lrg. Storage Unit. 00771_ The unstable cave ceiling collapses. 00779_ FV:0/HHIFQ /SMLTOMTG6F>\\1234 Not this time, boltface! 00904_ System corrupted: Heat flow error (+253). 00944_ Machine disabled. Map ----- +----------------------------------------------------+ | ????????????????????????????##" ###########???? | | ???????????????????????????##"" #?????????????? | | ????????????????????????####"" #?????????????? | | ??????????????????????#""""""" ##????????????? | | ??????????????????????""" " "" ##???######### | | ????????????????????" """ " #####"""""""" | | ??????????????????? " " " """ "" | | ???????????????? "" " | | ???????????????? " | | ????????????????? | | ????????????????? | | ?????????????????? | | ?????????????????? """""" | | ???????????????? ######""" | | ?????????????? ""#?????#####""" | | ?????????????? """#??????????##""" | | ????????????? "???????????????#"""" | | ????????????? "?????????????##"" | | ???????????? ##?#####??####"""" | | ???????????? ##aaa####""" | | ???????????? """" | | ??????????? | | ??????????? | | ?????????? % " | | ?????????? " "" """ | | ???????????" @%""## ##""" " " ""#" | | ?????????? "#### ######""" """##"" | | ?????????? """"##??# #????###""""##### | | ??????????? """#???# #??????######???? | | ??????????? ""##???! ???????????????? | | ???????????? """#????#" ??????????????? | | ????????????" #?????#" ??????????????? | | ??????????????? ?????????#!!""!"?????????????? | | ???????????????? ???????????######?????????????? | | ????????????????# ???????????????????????????????? | | ?????????????????????????????????????????????????? | | ?????????????????????????????????????????????????? | | ?????????????????????????????????????????????????? | | ?????????????????????????????????????????????????? | | ?????????????????????????????????????????????????? | | ?????????????????????????????????????????????????? | | ?????????????????????????????????????????????????? | | ?????????????????????????????????????????????????? | | ?????????????????????????????????????????????????? | | ?????????????????????????????????????????????????? | | ?????????????????????????????????????????????????? | | ?????????????????????????????????????????????????? | | ?????????????????????????????????????????????????? | | ?????????????????????????????????????????????????? | | ?????????????????????????????????????????????????? | +----------------------------------------------------+ Best States ------------- Heat Dissipation 25 Energy Generation 10 Energy Capacity 125 Matter Stores 300 Matter Capacity 300 Sight Range 16 Terrain Scan Range 14 Terrain Scan Density 10 Armor Coverage 150 Core Shielding 20 Evasion (%) 55 Recoil Reduction 2 Item Schematics ----------------- None Robot Schematics ------------------ None Fabricated ------------ Nothing Alien Tech Used ----------------- None Achievements -------------- None Challenges ------------ None Game ------ Seed WeldingMicrowarpFlamer Manual? 0 Play Time 00:08:36 Cumulative 326.0 hours Start 2022.05.02 @ 13:24:03 End 2022.05.02 @ 16:11:41 Sessions 4 Manual Loads 0 Difficulty Rogue Special Mode None Game No. 358 Rogue 358 Adventurer 0 Explorer 0 Win Type - Total 28 Types 17/3/2/1/2/0/3/0/0 Lore% 86 Gallery% 84 Achievement% 80 Wizard Run 0 Options --------- ASCII 0 Keyboard 0 Movement Mouse Keybinds 0 Fullscreen 2 Font 18/SmallcapsGlow Map View 76x50 Tactical HUD 1 Map Filters NONE Filters NONE Steam 1 RUN: 72b76871-ec6e-48d9-945e-8c50984957f6